bitfinex/quotes_BTCUSD_20260311
["timestamp","ask_amount","ask_price","bid_price","bid_amount"]
[1773255276538,0.00144,70711.0,70689.0,0.07104306]
[1773255276859,0.04825276,70712.0,70689.0,0.07104306]
[1773255277016,0.04969276,70710.0,70689.0,0.07104306]
[1773255277220,0.04969276,70710.0,70689.0,0.07204306]
[1773255277434,0.00144,70710.0,70689.0,0.07204306]
[1773255277634,0.14081074,70731.0,70690.0,0.87851225]
[1773255277915,0.00166001,70728.0,70710.0,0.12607525]
[1773255278261,0.00166001,70728.0,70694.0,0.27966055]
[1773255278462,0.04825276,70727.0,70696.0,0.218032]
[1773255278866,0.04825276,70727.0,70697.0,0.00144]
[1773255279048,0.04825276,70727.0,70698.0,0.198101]
[1773255279450,0.04825276,70727.0,70696.0,0.175251]
[1773255279649,0.04825276,70727.0,70699.0,0.00144]
[1773255280050,0.04825276,70727.0,70697.0,0.194418]
[1773255280279,0.04825276,70727.0,70700.0,0.00144]
[1773255280670,0.04825276,70727.0,70701.0,0.07072035]
[1773255280860,0.00166001,70728.0,70701.0,0.07072035]
[1773255281276,0.00022001,70732.0,70701.0,0.07072035]
[1773255281454,0.00036138,70736.0,70701.0,0.07072035]
[1773255281455,0.00036138,70736.0,70720.0,0.12607525]
[1773255281653,0.00036138,70736.0,70701.0,0.07072035]
[1773255281654,0.00036138,70736.0,70721.0,0.00144]
[1773255281904,0.00036138,70736.0,70722.0,0.00144]
[1773255282108,0.00036138,70736.0,70723.0,0.00144]
[1773255282305,0.00036138,70736.0,70724.0,0.00144]
[1773255282617,0.00047292,70736.0,70726.0,0.07069535]
[1773255282974,0.04872568,70736.0,70726.0,0.07069535]
[1773255283971,0.04858431,70736.0,70726.0,0.07069535]
[1773255284432,0.04872568,70736.0,70726.0,0.07069535]
[1773255285019,0.04872568,70736.0,70726.0,0.07169535]
[1773255285382,0.04872568,70736.0,70726.0,0.07069535]
[1773255286280,0.04872568,70736.0,70726.0,0.07169535]
[1773255286761,0.04872568,70736.0,70723.0,0.07213747]
[1773255286964,0.09012002,70735.0,70719.0,0.00144]
[1773255287192,0.04825276,70734.0,70709.0,0.07071235]
[1773255287341,0.04825276,70732.0,70715.0,0.00144]
[1773255287943,0.04825276,70732.0,70723.0,0.001]
[1773255288263,0.04825276,70732.0,70715.0,0.00144]
[1773255288468,0.04825276,70732.0,70709.0,0.07071235]
[1773255288822,0.07069036,70731.0,70704.0,0.07071735]
[1773255289024,0.04825276,70730.0,70704.0,0.07071735]
[1773255290349,0.04825276,70730.0,70707.0,0.00144]
[1773255291098,0.04825276,70729.0,70708.0,0.00144]
[1773255292076,0.04825276,70735.0,70710.0,0.12607525]
[1773255292276,0.00144,70738.0,70720.0,0.12607525]
[1773255292478,0.00144,70742.0,70721.0,0.00144]
[1773255292676,0.04825276,70740.0,70721.0,0.00144]
[1773255293076,0.04825276,70740.0,70722.0,0.07069935]
[1773255293290,0.04825276,70735.0,70722.0,0.07069935]
[1773255294577,0.04847277,70735.0,70722.0,0.07169935]
[1773255294822,0.04847277,70735.0,70722.0,0.07069935]
[1773255295612,0.04847277,70735.0,70722.0,0.07169935]
[1773255296303,0.04847277,70735.0,70723.0,0.00144]
[1773255296641,0.04847277,70735.0,70722.0,0.07069935]
[1773255296841,0.04847277,70735.0,70723.0,0.00144]
[1773255297098,0.04847277,70735.0,70724.0,0.07069735]
[1773255300395,0.00022001,70735.0,70724.0,0.07069735]
[1773255301677,0.00022001,70743.0,70724.0,0.07069735]
[1773255301876,0.00022001,70743.0,70724.0,0.07080889]
[1773255302106,0.04825276,70742.0,70724.0,0.07080889]
[1773255302499,0.00022001,70735.0,70724.0,0.07080889]
[1773255302909,0.04847277,70735.0,70725.0,0.00144]
[1773255303284,0.04847277,70735.0,70726.0,0.07069535]
[1773255303502,0.00022001,70735.0,70726.0,0.07069535]
[1773255303703,0.00022001,70743.0,70726.0,0.07069535]
[1773255303904,0.00022001,70748.0,70730.0,0.12607525]
[1773255304663,0.00022001,70748.0,70731.0,0.00144]
[1773255305554,0.0002702,70754.0,70738.0,0.12607525]
[1773255305763,0.0002702,70754.0,70739.0,0.00144]
[1773255306398,0.04825276,70753.0,70739.0,0.00144]
[1773255306623,0.0002702,70754.0,70732.0,0.07068936]
[1773255306851,0.16653164,70769.0,70741.0,0.04805624]
[1773255306852,0.0002702,70769.0,70741.0,0.04805624]
[1773255307073,1e-08,70769.0,70750.0,0.12607525]
[1773255307315,1e-08,70769.0,70751.0,0.00144]
[1773255307523,1e-08,70769.0,70752.0,0.07066938]
[1773255307524,0.04825276,70767.0,70752.0,0.07066938]
[1773255308426,0.04862463,70767.0,70752.0,0.07066938]
[1773255309494,0.04862463,70767.0,70752.0,0.07166938]
[1773255309948,0.04862463,70767.0,70752.0,0.07066938]
[1773255310157,0.04862463,70767.0,70752.0,0.07166938]
[1773255310395,0.00037187,70767.0,70752.0,0.07266938]
[1773255311024,0.00047828,70767.0,70752.0,0.07266938]
[1773255311249,0.04825276,70766.0,70752.0,0.07166938]
[1773255311457,0.04825276,70765.0,70752.0,0.07166938]
[1773255312111,0.04825276,70765.0,70752.0,0.07266938]
[1773255312324,0.04825276,70765.0,70752.0,0.07166938]
[1773255312744,0.04825276,70765.0,70752.0,0.07266938]
[1773255312893,0.04835917,70765.0,70752.0,0.07266938]
[1773255313093,0.04835917,70765.0,70752.0,0.07166938]
[1773255313499,0.04835917,70765.0,70752.0,0.07266938]
[1773255313845,0.04825276,70772.0,70752.0,0.07166938]
[1773255314003,0.04836421,70772.0,70752.0,0.07166938]
[1773255315207,0.04836421,70772.0,70752.0,0.07366938]
[1773255315442,0.04836421,70772.0,70752.0,0.07266938]
[1773255315610,0.04836421,70772.0,70752.0,0.07066938]
[1773255316020,0.04836421,70772.0,70752.0,0.07366938]
[1773255316219,0.00011145,70772.0,70752.0,0.07366938]
[1773255316394,0.00011145,70772.0,70752.0,0.07266938]
[1773255316612,0.00011145,70772.0,70753.0,0.00956461]
[1773255317798,0.00011145,70772.0,70754.0,0.07066738]
[1773255317952,0.00011145,70772.0,70755.0,0.01100461]
[1773255319449,0.00033146,70772.0,70755.0,0.01100461]
[1773255319856,0.00033146,70772.0,70756.0,0.07066538]
[1773255320268,0.00033146,70772.0,70755.0,0.01200461]
[1773255320467,0.00033146,70772.0,70755.0,0.07166579]
[1773255320468,0.0706504,70771.0,70755.0,0.07166579]
[1773255320695,0.0706504,70771.0,70755.0,0.07266588]
[1773255321028,0.0706504,70771.0,70755.0,0.07166588]
[1773255321532,0.0706504,70771.0,70755.0,0.07066588]
[1773255321745,0.0706504,70771.0,70755.0,0.07166588]
[1773255322107,0.00033146,70772.0,70756.0,0.00956461]
[1773255322928,0.00033146,70772.0,70755.0,0.03023049]
[1773255323134,0.00076683,70772.0,70756.0,0.00622231]
[1773255323478,0.00043537,70771.0,70757.0,0.00144]
[1773255323897,0.00043537,70771.0,70755.0,0.07066631]
[1773255324045,0.00043537,70771.0,70758.0,0.07066338]
[1773255324254,0.0706506,70771.0,70755.0,0.03943582]
[1773255324456,0.00043537,70768.0,70755.0,0.03943582]
[1773255324996,0.00043537,70768.0,70756.0,0.001]
[1773255325352,0.00043537,70768.0,70755.0,0.03943582]
[1773255325545,0.00144,70770.0,70756.0,0.00478231]
[1773255326364,0.00144,70770.0,70757.0,0.07544669]
[1773255327862,0.00144,70770.0,70757.0,0.07644669]
[1773255328064,0.00043537,70768.0,70749.0,0.07067237]
[1773255328272,0.0706544,70767.0,70748.0,0.00144]
[1773255328468,0.00043537,70766.0,70748.0,0.00622231]
[1773255329491,0.00043537,70766.0,70748.0,0.00478231]
[1773255330476,0.00043537,70766.0,70749.0,0.07689468]
[1773255330673,0.09409861,70769.0,70750.0,0.00478231]
[1773255331305,0.00033146,70772.0,70751.0,0.00478231]
[1773255331739,0.00144,70771.0,70751.0,0.00478231]
[1773255332521,0.00033146,70772.0,70752.0,0.07066938]
[1773255332722,0.00144,70771.0,70753.0,0.00478231]
[1773255333168,0.00033146,70772.0,70753.0,0.00478231]
[1773255333452,0.00144,70771.0,70752.0,0.07066938]
[1773255333603,0.00043537,70768.0,70752.0,0.07066938]
[1773255334127,0.00043537,70768.0,70752.0,0.07545169]
[1773255334303,0.00043537,70768.0,70753.0,0.00144]
[1773255334724,0.00043537,70768.0,70754.0,0.07066738]
[1773255335618,0.00043537,70768.0,70753.0,0.07210786]
[1773255335619,0.00043537,70767.0,70753.0,0.07210786]
[1773255335970,0.00043537,70767.0,70757.0,0.0090069]
[1773255340866,0.00365289,70766.0,70750.0,0.0002]
[1773255341069,0.00365289,70766.0,70750.0,0.07087112]
[1773255341240,0.00144,70765.0,70750.0,0.07087112]
[1773255341443,0.00144,70765.0,70751.0,0.00495043]
[1773255342061,0.00144,70764.0,70751.0,0.00495043]
[1773255342743,0.21175849,70768.0,70752.0,0.07066938]
[1773255342944,0.00144,70767.0,70751.0,0.07066938]
[1773255343195,0.00144,70767.0,70751.0,0.07086938]
[1773255343370,0.21175849,70768.0,70751.0,0.07086938]
[1773255343696,0.00144,70766.0,70751.0,0.07086938]
[1773255345101,0.07065639,70765.0,70751.0,0.0002]
[1773255345324,0.07065639,70765.0,70751.0,0.0708703]
[1773255345538,0.07065639,70765.0,70752.0,0.01107862]
[1773255346658,0.14124691,70768.0,70752.0,0.01107862]
[1773255346659,0.00022001,70768.0,70752.0,0.01107862]
[1773255346897,0.00144,70767.0,70752.0,0.01107862]
[1773255347251,0.00144,70767.0,70753.0,0.081747]
[1773255347447,0.00022001,70768.0,70753.0,0.081747]
[1773255347680,0.00144,70766.0,70753.0,0.081747]
[1773255348300,0.00144,70766.0,70754.0,0.01107862]
[1773255348508,0.00022001,70768.0,70754.0,0.01107862]
[1773255348715,0.00144,70766.0,70754.0,0.01107862]
[1773255349323,0.00144,70766.0,70755.0,0.081745]
[1773255350205,0.0031,70765.0,70755.0,0.01107862]
[1773255350510,0.0031,70765.0,70753.0,0.07066761]
[1773255351010,0.0031,70765.0,70754.0,0.01107862]
[1773255351413,0.0031,70765.0,70756.0,0.01107862]
[1773255351576,0.00033146,70772.0,70758.0,0.01107862]
[1773255353283,0.00022001,70766.0,70758.0,0.01207862]
[1773255353475,0.00022001,70766.0,70760.0,0.01107862]
[1773255355312,0.00022001,70766.0,70760.0,0.01207862]
[1773255355477,0.00022001,70766.0,70761.0,0.08173901]
[1773255355884,0.00022001,70766.0,70755.0,0.07230547]
[1773255356045,0.00022001,70766.0,70760.0,0.001]
[1773255356437,0.00022001,70766.0,70755.0,0.08338409]
[1773255356639,0.00022001,70766.0,70761.0,0.001]
[1773255356995,0.00022001,70766.0,70760.0,0.001]
[1773255357408,0.00022001,70766.0,70755.0,0.08338409]
[1773255358101,0.00022001,70766.0,70755.0,0.07086547]
[1773255358322,0.00022001,70766.0,70756.0,0.01107862]
[1773255359248,0.00322001,70766.0,70756.0,0.01107862]
[1773255360127,0.00322001,70766.0,70758.0,0.01107862]
[1773255361712,0.00322001,70766.0,70758.0,0.01207862]
[1773255362087,0.00322001,70766.0,70759.0,0.07066238]
[1773255362554,0.00322001,70766.0,70758.0,0.08274177]
[1773255362757,0.00033146,70772.0,70759.0,0.01107862]
[1773255362901,0.00022001,70766.0,70758.0,0.001]
[1773255363099,0.00022001,70766.0,70758.0,0.002]
[1773255363542,0.00022001,70766.0,70758.0,0.07166321]
[1773255363841,0.00022001,70766.0,70758.0,0.07266321]
[1773255364243,0.00022001,70766.0,70758.0,0.07166321]
[1773255364441,0.00022001,70766.0,70758.0,0.07066321]
[1773255364811,0.00022001,70766.0,70755.0,0.0002]
[1773255365009,0.00022001,70766.0,70735.0,0.0002]
[1773255365010,0.15575743,70765.0,70742.0,0.0002]
[1773255365233,0.00469028,70764.0,70737.0,0.07068349]
[1773255365415,0.15575743,70765.0,70730.0,0.0002]
[1773255365416,0.00469028,70759.0,70730.0,0.0002]
[1773255365614,0.00469028,70759.0,70728.0,0.0709318]
[1773255365615,0.00469028,70757.0,70728.0,0.000239]
[1773255365815,0.14253589,70758.0,70725.0,0.00014139]
[1773255365816,0.00469028,70755.0,70725.0,0.00014139]
[1773255366024,0.00469028,70753.0,70725.0,0.00014139]
[1773255366256,0.00469028,70751.0,70725.0,0.00014139]
[1773255367024,0.00144,70750.0,70725.0,0.00014139]
[1773255367626,0.07066938,70752.0,70726.0,0.005]
[1773255367767,0.00144,70749.0,70726.0,0.005]
[1773255368325,0.07067337,70748.0,70728.0,0.005]
[1773255368735,0.07067337,70748.0,70726.0,0.00037187]
[1773255369551,0.07067337,70748.0,70726.0,0.07106701]
[1773255369756,0.07067337,70748.0,70727.0,0.005]
[1773255370197,0.07067337,70748.0,70727.0,0.07069432]
[1773255370331,0.07067337,70748.0,70728.0,0.005]
[1773255370531,0.00144,70747.0,70728.0,0.005]
[1773255371454,0.00144,70747.0,70728.0,0.0051724]
[1773255371987,0.00144,70746.0,70728.0,0.0051724]
[1773255372421,0.07067637,70745.0,70728.0,0.07586573]
[1773255372599,0.00144,70744.0,70728.0,0.0001724]
[1773255373689,0.00144,70744.0,70718.0,0.0004297]
[1773255373898,0.00144,70744.0,70722.0,0.00031154]
[1773255374102,0.00144,70744.0,70718.0,0.0004297]
[1773255374308,0.07067837,70743.0,70718.0,0.07613295]
[1773255374519,0.07067837,70743.0,70718.0,0.0004297]
[1773255374733,0.07067837,70743.0,70711.0,0.0002]
[1773255376445,0.03234816,70742.0,70711.0,0.0002]
[1773255376848,0.03234816,70742.0,70725.0,0.00014139]
[1773255377618,0.117404,70741.0,70725.0,0.00014139]
[1773255377959,0.17276589,70742.0,70725.0,0.00014139]
[1773255378175,0.03234816,70742.0,70725.0,0.00014139]
[1773255378320,0.08510104,70739.0,70725.0,0.00014139]
[1773255378522,0.08510104,70739.0,70711.0,0.0002]
[1773255379523,0.00144,70738.0,70711.0,0.0002]
[1773255380803,0.07068436,70737.0,70711.0,0.0002]
[1773255381012,0.07068436,70737.0,70711.0,0.0052]
[1773255381629,0.07068436,70737.0,70712.0,0.005]
[1773255383307,0.07068436,70737.0,70711.0,0.0002]
[1773255383477,0.00475184,70735.0,70698.0,0.00515818]
[1773255383866,0.00475184,70735.0,70698.0,0.0002]
[1773255383867,0.00475184,70734.0,70698.0,0.0002]
[1773255384071,0.00475184,70734.0,70698.0,0.00515818]
[1773255384638,0.00475184,70734.0,70701.0,0.005]
[1773255385247,0.07068836,70733.0,70701.0,0.005]
[1773255386374,0.07168836,70733.0,70701.0,0.005]
[1773255388608,0.03234816,70732.0,70700.0,0.01144]
[1773255388985,1.30364516,70728.0,70681.0,0.04448131]
[1773255389260,0.06668,70729.0,70682.0,0.00495818]
[1773255389261,0.00475184,70716.0,70682.0,0.00495818]
[1773255389461,0.03234816,70717.0,70682.0,0.00495818]
[1773255389462,0.00475184,70714.0,70682.0,0.00495818]
[1773255390407,0.07070835,70713.0,70683.0,0.00495818]
[1773255390685,0.00475184,70712.0,70683.0,0.00495818]
[1773255390999,0.00284274,70710.0,70683.0,0.00495818]
[1773255391469,0.00012954,70696.0,70683.0,0.00495818]
[1773255391666,0.00144,70695.0,70683.0,0.00495818]
[1773255393039,0.00144,70695.0,70684.0,0.00495818]
[1773255394425,0.00144,70695.0,70684.0,0.07073733]
[1773255394595,0.00144,70695.0,70685.0,0.00495818]
[1773255395000,0.0750093,70695.0,70682.0,0.00011129]
[1773255395242,0.07216656,70695.0,70691.0,0.00014146]
[1773255396024,0.07072656,70695.0,70691.0,0.00014146]
[1773255396246,0.07072836,70693.0,70683.0,0.00495818]
[1773255396458,0.07072836,70693.0,70682.0,0.00011129]
[1773255398279,0.07072836,70693.0,70676.0,0.00495818]
[1773255398471,0.00144,70692.0,70676.0,0.0050698]
[1773255399086,0.07072836,70693.0,70676.0,0.0050698]
[1773255399442,0.00144,70691.0,70676.0,0.0050698]
[1773255400261,0.00144,70691.0,70684.0,0.0090069]
[1773255400781,0.07073136,70690.0,70684.0,0.0090069]
[1773255401607,0.00144,70690.0,70685.0,0.00483579]
[1773255401740,0.00144,70696.0,70685.0,0.00483579]
[1773255401936,0.07071135,70710.0,70685.0,0.00483579]
[1773255402136,0.00144,70709.0,70685.0,0.00483579]
[1773255403084,0.07071335,70708.0,70686.0,0.07073536]
[1773255403437,0.00284274,70707.0,70686.0,0.00483579]
[1773255403589,0.00284274,70707.0,70684.0,0.0090069]
[1773255404187,0.00284274,70707.0,70684.0,0.01384269]
[1773255405271,0.00284274,70705.0,70684.0,0.01384269]
[1773255405886,0.00284274,70705.0,70685.0,0.00483579]
[1773255408123,0.00284274,70703.0,70685.0,0.00483579]
[1773255408321,0.00428274,70702.0,70685.0,0.00483579]
[1773255410219,0.07072035,70701.0,70685.0,0.00483579]
[1773255412060,0.07094036,70701.0,70685.0,0.00483579]
[1773255412668,0.07094036,70701.0,70684.0,0.0090069]
[1773255412929,0.28289259,70701.0,70684.0,0.0090069]
[1773255413207,0.21153406,70701.0,70684.0,0.0090069]
[1773255413503,0.07135853,70699.0,70684.0,0.0090069]
[1773255413655,0.1405937,70699.0,70684.0,0.0090069]
[1773255413863,0.07135853,70699.0,70684.0,0.0090069]
[1773255414202,0.07135853,70700.0,70684.0,0.0090069]
[1773255414393,0.14208188,70698.0,70684.0,0.0090069]
[1773255414985,0.28267558,70698.0,70684.0,0.0090069]
[1773255415597,0.07135853,70697.0,70684.0,0.0090069]
[1773255415769,0.00144,70696.0,70684.0,0.0090069]
[1773255416393,0.07072635,70695.0,70684.0,0.0090069]
[1773255416814,0.21275947,70696.0,70684.0,0.0090069]
[1773255417403,0.21275947,70696.0,70684.0,0.07974422]
[1773255417404,0.1420337,70696.0,70684.0,0.07974422]
[1773255417576,0.00144,70696.0,70684.0,0.07974422]
[1773255419224,0.00144,70695.0,70684.0,0.07974422]
[1773255419585,0.07072241,70699.0,70684.0,0.07994422]
[1773255419820,0.00144,70694.0,70684.0,0.07994422]
[1773255420252,0.00144,70693.0,70684.0,0.07994422]
[1773255420482,0.07072241,70699.0,70684.0,0.0008089]
[1773255420721,0.07135853,70695.0,70684.0,0.0008089]
[1773255421380,0.07135853,70693.0,70672.0,0.0001199]
[1773255421622,0.07135853,70693.0,70662.0,0.2114887]
[1773255421623,0.07135853,70680.0,70663.0,0.07217157]
[1773255421814,0.00144,70679.0,70663.0,0.07217157]
[1773255422684,0.07074023,70682.0,70663.0,0.07217157]
[1773255422902,0.00144,70681.0,70663.0,0.07217157]
[1773255424732,0.07074136,70680.0,70663.0,0.07217157]
[1773255425029,0.14209989,70680.0,70663.0,0.07217157]
[1773255425444,0.07135853,70679.0,70663.0,0.00141375]
[1773255426250,0.07135853,70677.0,70650.0,0.0090069]
[1773255426559,0.14106181,70677.0,70643.0,0.01124]
[1773255426696,0.07074737,70674.0,70643.0,0.01124]
[1773255426897,0.07135853,70673.0,70643.0,0.08201827]
[1773255427096,0.07135853,70671.0,70643.0,0.08201827]
[1773255428031,0.07135853,70671.0,70655.0,0.0002]
[1773255428236,0.07146986,70671.0,70655.0,0.0002]
[1773255429290,0.07135853,70669.0,70655.0,0.0002]
[1773255430337,0.07075137,70673.0,70655.0,0.0002]
[1773255430338,0.03567927,70680.0,70655.0,0.0002]
[1773255430678,0.09624221,70681.0,70656.0,0.06988154]
[1773255430967,0.02550166,70681.0,70656.0,0.06988154]
[1773255431117,0.00144,70680.0,70656.0,0.06988154]
[1773255431327,0.00144,70680.0,70657.0,0.07076439]
[1773255431531,0.001,70671.0,70657.0,0.07076439]
[1773255431736,0.00144,70675.0,70657.0,0.07076439]
[1773255432186,0.09624217,70681.0,70657.0,0.07076439]
[1773255432379,0.00144,70675.0,70657.0,0.07076439]
[1773255432701,0.00144,70675.0,70657.0,0.07176439]
[1773255433229,0.00144,70675.0,70657.0,0.07076439]
[1773255434683,0.00144,70675.0,70657.0,0.07196439]
[1773255435099,0.00144,70675.0,70657.0,0.07296439]
[1773255435486,0.00144,70675.0,70657.0,0.07396439]
[1773255435869,0.00144,70675.0,70657.0,0.07296439]
[1773255436210,0.00264,70675.0,70657.0,0.07396439]
[1773255436360,0.00264,70675.0,70657.0,0.07196439]
[1773255436783,0.02550166,70681.0,70657.0,0.07396439]
[1773255436983,0.00144,70686.0,70660.0,0.12617367]
[1773255437206,0.00144,70686.0,70661.0,0.00144]
[1773255437407,0.07073699,70685.0,70662.0,0.00144]
[1773255437616,0.005,70684.0,70662.0,0.00144]
[1773255438703,0.005,70684.0,70662.0,0.00244]
[1773255438911,0.005,70684.0,70663.0,0.00144]
[1773255439652,0.005,70684.0,70664.0,0.07075738]
[1773255440942,0.00144,70686.0,70664.0,0.07075738]
[1773255441398,0.00144,70686.0,70664.0,0.07175738]
[1773255441728,0.005,70685.0,70664.0,0.07175738]
[1773255442549,0.005,70685.0,70664.0,0.07075738]
[1773255442922,0.00144,70684.0,70665.0,0.00490552]
[1773255443521,0.0049678,70683.0,70665.0,0.00490552]
[1773255443758,0.0049678,70682.0,70666.0,0.07075538]
[1773255444071,0.0049678,70682.0,70666.0,0.0756609]
[1773255444279,0.0049678,70682.0,70667.0,0.00490552]
[1773255444569,0.0049678,70682.0,70666.0,0.07075538]
[1773255445372,0.0049678,70682.0,70666.0,0.07175538]
[1773255446360,0.07073994,70682.0,70666.0,0.07275538]
[1773255446577,0.07573994,70682.0,70666.0,0.07275538]
[1773255446797,0.005,70681.0,70666.0,0.07275538]
[1773255447690,0.005,70681.0,70666.0,0.07075538]
[1773255448043,0.005,70681.0,70666.0,0.07175538]
[1773255448240,0.00166001,70684.0,70666.0,0.07175538]
[1773255448865,0.00166001,70684.0,70666.0,0.07075538]
[1773255449078,0.00166001,70684.0,70666.0,0.07175538]
[1773255449286,0.00166001,70684.0,70666.0,0.07075538]
[1773255449561,0.00144,70683.0,70666.0,0.07075538]
[1773255449762,0.00144,70683.0,70666.0,0.07175538]
[1773255450381,0.00166001,70684.0,70666.0,0.07175538]
[1773255450590,0.00166001,70684.0,70666.0,0.07275538]
[1773255450990,0.00166001,70684.0,70666.0,0.07175538]
[1773255451393,0.00166001,70684.0,70666.0,0.07275538]
[1773255451810,0.00022001,70684.0,70666.0,0.07175538]
[1773255452010,0.00666001,70684.0,70666.0,0.07175538]
[1773255452210,0.00166001,70684.0,70666.0,0.07275538]
[1773255452550,0.00166001,70684.0,70666.0,0.07075538]
[1773255452551,0.00022001,70684.0,70666.0,0.07075538]
[1773255452900,0.00022001,70684.0,70666.0,0.07175538]
[1773255453905,0.005,70683.0,70666.0,0.07175538]
[1773255454201,0.005,70683.0,70666.0,0.07075538]
[1773255454371,0.00022001,70684.0,70666.0,0.07075538]
[1773255454573,0.00022001,70684.0,70666.0,0.07175538]
[1773255455075,0.00022001,70684.0,70666.0,0.07075538]
[1773255455256,0.00022001,70684.0,70666.0,0.07175538]
[1773255455847,0.00022001,70684.0,70666.0,0.07075538]
[1773255456163,0.00022001,70684.0,70666.0,0.07275538]
[1773255456535,0.00022001,70684.0,70666.0,0.07175538]
[1773255456737,0.00022001,70684.0,70666.0,0.07275538]
[1773255457090,0.005,70683.0,70666.0,0.07275538]
[1773255457386,0.00022001,70684.0,70666.0,0.07175538]
[1773255457760,0.00022001,70684.0,70667.0,0.00331766]
[1773255458675,0.00522001,70684.0,70668.0,0.07075338]
[1773255458848,0.00522001,70684.0,70669.0,0.00475756]
[1773255460356,0.00522001,70684.0,70669.0,0.00144]
[1773255460549,0.00522001,70684.0,70670.0,0.00473254]
[1773255461106,0.00522001,70684.0,70671.0,0.07075037]
[1773255461428,0.00022001,70684.0,70672.0,0.00473241]
[1773255462263,0.005,70683.0,70672.0,0.00473241]
[1773255463070,0.005,70683.0,70673.0,0.07074837]
[1773255463719,0.005,70683.0,70673.0,0.07548071]
[1773255465772,0.005,70683.0,70673.0,0.07648071]
[1773255465981,0.005,70683.0,70673.0,0.07548071]
[1773255466180,0.005,70683.0,70673.0,0.07648071]
[1773255466359,0.005,70683.0,70673.0,0.07748071]
[1773255466766,0.005,70683.0,70673.0,0.07648071]
[1773255467000,0.005,70683.0,70673.0,0.07748071]
[1773255467394,0.005,70683.0,70673.0,0.07274837]
[1773255467800,0.005,70683.0,70673.0,0.07174837]
[1773255467999,0.00022001,70684.0,70671.0,0.16960496]
[1773255468176,0.005,70683.0,70667.0,0.07075413]
[1773255468795,0.005,70683.0,70673.0,0.002]
[1773255468969,0.005,70683.0,70673.0,0.001]
[1773255469176,0.005,70683.0,70667.0,0.07075413]
[1773255469372,0.07073861,70683.0,70667.0,0.07075413]
[1773255469608,0.005,70682.0,70667.0,0.07075413]
[1773255470207,0.07095782,70684.0,70667.0,0.07075413]
[1773255470208,0.00022001,70684.0,70667.0,0.07075413]
[1773255470526,0.00522001,70684.0,70667.0,0.07075413]
[1773255471877,0.00522001,70684.0,70667.0,0.07175413]
[1773255472317,0.02053238,70682.0,70667.0,0.07175413]
[1773255472518,0.02053238,70682.0,70667.0,0.07075413]
[1773255472717,0.02053238,70682.0,70667.0,0.07175413]
[1773255472911,0.02053238,70682.0,70667.0,0.07275413]
[1773255473318,0.02053238,70682.0,70667.0,0.07075413]
[1773255473653,0.02053238,70682.0,70667.0,0.07175413]
[1773255474682,0.02053238,70682.0,70662.0,0.2129287]
[1773255474683,0.12615305,70680.0,70656.0,0.14168813]
[1773255474816,0.12615305,70680.0,70628.0,0.00012]
[1773255474817,0.02053238,70677.0,70649.0,0.07097235]
[1773255475151,0.02053238,70675.0,70649.0,0.07097215]
[1773255475724,0.02053238,70669.0,70649.0,0.07097215]
[1773255475930,0.02053238,70667.0,70656.0,0.001]
[1773255476363,0.02053238,70667.0,70649.0,0.07097215]
[1773255477432,0.02053848,70675.0,70651.0,0.08161838]
[1773255477771,0.02053848,70673.0,70651.0,0.08161838]
[1773255478225,0.07074584,70676.0,70651.0,0.08161838]
[1773255478226,0.001,70667.0,70651.0,0.08161838]
[1773255478361,0.02197848,70672.0,70651.0,0.08161838]
[1773255478553,0.02053848,70670.0,70652.0,0.00144]
[1773255478957,0.00144,70669.0,70652.0,0.00144]
[1773255479162,0.02053558,70668.0,70652.0,0.00144]
[1773255479368,0.09128896,70668.0,70657.0,0.07076415]
[1773255479584,0.02053558,70667.0,70657.0,0.07076415]
[1773255479786,0.02053558,70667.0,70659.0,0.0002]
[1773255480918,0.07219243,70669.0,70659.0,0.0002]
[1773255481748,0.00144,70669.0,70660.0,0.07076139]
[1773255481973,0.07219247,70669.0,70660.0,0.07076139]
[1773255482169,0.00244,70669.0,70659.0,0.07096203]
[1773255482383,0.09272798,70669.0,70659.0,0.0002]
[1773255482554,0.09128798,70669.0,70659.0,0.0002]
[1773255482763,0.02056429,70667.0,70656.0,0.07076461]
[1773255482963,0.02056429,70667.0,70655.0,0.07076625]
[1773255484691,0.07075538,70666.0,70654.0,0.07076693]
[1773255485096,0.02819435,70665.0,70654.0,0.07076693]
[1773255485499,0.02819435,70665.0,70655.0,0.001]
[1773255485937,0.02819435,70665.0,70653.0,0.0707664]
[1773255486269,0.02819435,70665.0,70654.0,0.001]
[1773255486708,0.02919435,70665.0,70653.0,0.0707664]
[1773255487871,0.02819435,70665.0,70653.0,0.0707664]
[1773255488117,0.02819435,70665.0,70655.0,0.0002]
[1773255488425,0.09895079,70665.0,70655.0,0.0002]
[1773255488918,0.09895079,70665.0,70655.0,0.07096572]
[1773255489274,0.02819435,70665.0,70655.0,0.07096572]
[1773255490138,0.09895164,70665.0,70655.0,0.07096572]
[1773255490917,0.07075602,70666.0,70655.0,0.07096572]
[1773255491119,0.02817347,70665.0,70655.0,0.07096572]
[1773255492192,0.02817347,70665.0,70655.0,0.07196572]
[1773255492737,0.02817347,70665.0,70655.0,0.07096572]
[1773255492949,0.02817347,70665.0,70651.0,0.07076996]
[1773255493141,0.02817347,70665.0,70649.0,0.0002]
[1773255493142,0.0281705,70664.0,70649.0,0.0002]
[1773255493739,0.0281705,70664.0,70655.0,0.001]
[1773255493937,0.0281705,70664.0,70647.0,0.0002]
[1773255495135,0.028168,70662.0,70647.0,0.0002]
[1773255495342,0.028168,70660.0,70647.0,0.0002]
[1773255495743,0.0029,70650.0,70647.0,0.0002]
[1773255496109,0.00434,70650.0,70649.0,0.0002]
[1773255496869,0.03287405,70650.0,70649.0,0.0002]
[1773255498061,0.00471178,70650.0,70649.0,0.0002]
[1773255499795,0.02815642,70667.0,70649.0,0.07097185]
[1773255500069,0.00144,70666.0,70649.0,0.07108318]
[1773255500199,0.00022001,70669.0,70649.0,0.07108318]
[1773255500398,0.00144,70668.0,70649.0,0.07108318]
[1773255500909,0.02814991,70667.0,70649.0,0.00031133]
[1773255501137,0.02814991,70667.0,70649.0,0.0710831]
[1773255501350,0.02814991,70667.0,70649.0,0.00031133]
[1773255501550,0.02814991,70667.0,70649.0,0.07108329]
[1773255502078,0.02814991,70665.0,70649.0,0.07108329]
[1773255502263,0.07075538,70666.0,70649.0,0.07108329]
[1773255502264,0.00144,70666.0,70651.0,0.0894532]
[1773255503251,0.00144,70666.0,70652.0,0.00144]
[1773255504045,0.00144,70666.0,70653.0,0.0707684]
[1773255505570,0.00166001,70667.0,70653.0,0.0707684]
[1773255506017,0.00166001,70667.0,70653.0,0.0717684]
[1773255506195,0.00166001,70667.0,70653.0,0.0727684]
[1773255506597,0.00166001,70667.0,70653.0,0.0707684]